fUSD/lending_fUSD_20260218
["ID","MTS","AMOUNT","RATE_DAILY","PERIOD"]
[405958900,1771456244895,-500.0,0.00017998,2]
[405958901,1771456244906,-761.18,0.00017998,2]
[405958902,1771456244915,-500.0,0.00017998,2]
[405958903,1771456244926,-500.0,0.00017998,2]
[405958904,1771456244938,-300.0,0.00017998,2]
[405958905,1771456244950,-666.0,0.00017998,2]
[405958906,1771456244961,-300.0,0.00017999,2]
[405958907,1771456244971,-591.1,0.00017999,2]
[405958908,1771456244981,-591.1,0.00017999,2]
[405958909,1771456244991,-591.1,0.00017999,2]
[405958910,1771456245001,-591.1,0.00017999,2]
[405958911,1771456245011,-591.10047002,0.00017999,2]
[405958912,1771456245022,-4320.08,0.00017999,2]
[405958913,1771456245032,-500.0,0.00017999,2]
[405958914,1771456245043,-500.0,0.00017999,2]
[405958915,1771456245055,-500.0,0.00017999,2]
[405958916,1771456245067,-500.0,0.00017999,2]
[405958917,1771456245079,-308.1,0.00017999,2]
[405958918,1771456245090,-761.18,0.00017999,2]
[405958919,1771456245100,-761.18,0.00017999,2]
[405958920,1771456245110,-761.18,0.00017999,2]
[405958921,1771456245119,-761.18,0.00017999,2]
[405958922,1771456245129,-761.36,0.00017999,2]
[405958923,1771456245140,-300.0,0.00017999,2]
[405958924,1771456245150,-319.90825596,0.00017999,2]
[405958925,1771456245160,-666.0,0.00017999,2]
[405958926,1771456245170,-300.0,0.00017999,2]
[405958927,1771456245181,-620.1235705,0.00017999,2]
[405958928,1771456245191,-500.0,0.00017999,2]
[405958929,1771456245201,-265.57,0.00017999,2]
[405958930,1771456245211,-155.0,0.00017999,2]
[405958931,1771456245222,-300.0,0.00017999,2]
[405958932,1771456245233,-297.03102847,0.00017999,2]
[405958933,1771456245244,-4200.74,0.00017999,2]
[405958934,1771456245256,-425961.57370893,0.00018,2]
[405958935,1771456245301,-134850.36965027,0.00018,2]
[405958936,1771456245314,-1247.84626296,0.00018,2]
[405958939,1771456245561,-438.0,0.00015137,2]
[405958940,1771456245575,-768.814502,0.00015137,2]
[405958941,1771456245588,-848.08325576,0.00015137,2]
[405958942,1771456245598,-282.69281624,0.000179,2]
[405958946,1771456245973,-1014.24804819,0.000179,2]
[405958947,1771456245985,-10828.1677092,0.00018,2]
[405958948,1771456246071,-11947.57819722,0.00018,2]
[405958949,1771456246085,-38189.82715458,0.00018,2]
[405958950,1771456246165,-1999.958517,0.00018,2]
[405958951,1771456246177,-420.0,0.00018,2]
[405958952,1771456246258,-3410.4512318,0.00018,2]
[405958968,1771456507958,1080.0,0.00018,30]
[405958969,1771456878433,-150.0,7.83e-05,2]
[405958970,1771456878706,-216.0,7.83e-05,2]
[405958971,1771456878734,-151.0,7.855e-05,2]
[405958972,1771456878759,-151.0,7.855e-05,2]
[405958973,1771456878782,-151.0,7.855e-05,2]
[405958974,1771456878808,-1200.0,7.856e-05,2]
[405958975,1771456878830,-167.98424554,7.857e-05,2]
[405958976,1771456878853,-269.02571503,7.857e-05,2]
[405958977,1771456878879,-500.0,7.857e-05,2]
[405958978,1771456878904,-581.11042466,7.857e-05,2]
[405958979,1771456878927,-179.79014048,7.857e-05,2]
[405958980,1771456878956,-500.0,7.857e-05,2]
[405958981,1771456878986,-446.76582738,7.857e-05,2]
[405958982,1771456879015,-500.0,7.857e-05,2]
[405958983,1771456879041,-10236.32364691,7.858e-05,2]
[405958988,1771457251311,-5406649.48746304,0.00044426,20]
[405958989,1771457251338,-1026.19842254,0.00044426,20]
[405958990,1771457251367,-17279.56753268,0.00044426,20]
[405958991,1771457251393,-234.98264036,0.00044426,20]
[405958992,1771457251416,-227.12839202,0.00044426,28]
[405958993,1771457251441,-10000.0,0.00044426,29]
[405958994,1771457251466,-500.0,0.00044426,120]
[405958995,1771457251489,-10688.0,0.00044426,120]
[405958996,1771457251512,-289188.32344489,0.00044426,90]
[405958997,1771457251536,-3264206.31210447,0.00044426,120]
[405958998,1771457256205,-4296373.92789553,0.00044426,120]
[405958999,1771457256232,-50000.0,0.00044426,45]
[405959000,1771457256260,-50000.0,0.00044426,50]
[405959001,1771457256286,-50000.0,0.00044426,53]
[405959002,1771457256311,-50000.0,0.00044426,56]
[405959003,1771457256336,-50000.0,0.00044426,57]
[405959004,1771457256360,-500.0,0.00044426,31]
[405959005,1771457256383,-500.0,0.00044426,30]
[405959006,1771457256406,-12045.68,0.00044426,120]
[405959007,1771457256430,-2009487.71272396,0.00044426,30]
[405959008,1771457256453,-4999.999999,0.00044426,120]
[405959009,1771457256477,-5100.0,0.00044426,36]
[405959010,1771457256502,-20678.02339607,0.00044426,120]
[405959011,1771457256525,-600.0,0.00044426,120]
[405959012,1771457256548,-215.593957,0.00044426,120]
[405959013,1771457256571,-1000.0,0.00044426,30]
[405959014,1771457256595,-21043.75650877,0.00044426,120]
[405959015,1771457256620,-228.69657264,0.00044426,120]
[405959016,1771457256644,-244.43943853,0.00044426,120]
[405959017,1771457256667,-244.43943853,0.00044426,120]
[405959018,1771457256692,-189.93330033,0.00044426,120]
[405959019,1771457256717,-244.43943853,0.00044426,120]
[405959020,1771457256742,-189.93330033,0.00044426,120]
[405959021,1771457256767,-189.93330033,0.00044426,120]
[405959022,1771457256792,-189.93330033,0.00044426,120]
[405959023,1771457256817,-189.93330033,0.00044426,120]
[405959024,1771457256843,-189.93330033,0.00044426,120]
[405959025,1771457256867,-189.93330033,0.00044426,120]
[405959026,1771457256891,-1105.0,0.00044426,30]
[405959027,1771457256914,-1105.0,0.00044426,30]
[405959028,1771457256939,-1105.0,0.00044426,30]
[405959029,1771457256965,-189.93330032,0.00044426,120]
[405959030,1771457256989,-150.0,0.00044426,30]
[405959031,1771457257012,-2175.76626924,0.00044426,120]
[405959032,1771457257037,-2016.379999,0.00044426,120]
[405959033,1771457257059,-251.565019,0.00044426,30]
[405959034,1771457274204,297.03102847,0.00044426,20]
[405959035,1771457279166,183.60170367,0.00044426,20]
[405959036,1771457312140,-200.0,7.7e-05,2]
[405959037,1771457312170,-2085.875,7.701e-05,2]
[405959038,1771457312198,-184.237,7.701e-05,2]
[405959039,1771457312225,-4129.7286,7.758e-05,2]
[405959040,1771457312254,-10097.474,7.758e-05,2]
[405959041,1771457312286,-3500000.0,7.758e-05,2]
[405959042,1771457312315,-400.0,7.8e-05,2]
[405959043,1771457312345,-403.24562456,7.8e-05,2]
[405959044,1771457312374,-475.85309834,7.857e-05,2]
[405959045,1771457312403,-406.77729726,7.857e-05,2]
[405959046,1771457312432,-188.31800052,7.857e-05,2]
[405959047,1771457312457,-9388.06383748,7.857e-05,2]
[405959048,1771457312484,-600.0,7.9e-05,2]
[405959049,1771457312508,-800.0,8e-05,2]
[405959050,1771457312533,-500.0,8.219e-05,2]
[405959051,1771457312558,-500.0,8.219e-05,2]
[405959052,1771457312581,-500.0,8.219e-05,2]
[405959053,1771457312606,-500.0,8.219e-05,2]
[405959054,1771457312632,-500.0,8.219e-05,2]
[405959055,1771457312657,-500.0,8.219e-05,2]
[405959056,1771457312681,-191.17547676,8.219e-05,2]
[405959057,1771457312706,-500.0,8.219e-05,2]
[405959058,1771457312730,-500.0,8.219e-05,2]
[405959059,1771457312754,-500.0,8.219e-05,2]
[405959060,1771457313000,-500.0,8.219e-05,2]
[405959061,1771457313026,-500.0,8.219e-05,2]
[405959062,1771457313052,-250.0,8.219e-05,2]
[405959063,1771457313078,-5000.0,8.471e-05,2]
[405959064,1771457313105,-5000.0,8.471e-05,2]
[405959065,1771457313132,-5000.0,8.471e-05,2]
[405959066,1771457313158,-5000.0,8.471e-05,2]
[405959067,1771457313183,-5000.0,8.471e-05,2]
[405959068,1771457313210,-250.0,8.471e-05,2]
[405959069,1771457313236,-5133.89682485,9e-05,2]
[405959070,1771457313260,-5000.0,9e-05,2]
[405959071,1771457313285,-5000.0,9e-05,2]
[405959072,1771457313309,-5000.0,9e-05,2]
[405959073,1771457313333,-5000.0,9e-05,2]
[405959074,1771457313357,-20082.03007462,9.253e-05,2]
[405959075,1771457313384,-1600.0,9.502e-05,2]
[405959076,1771457313411,-500.0,9.726e-05,2]
[405959077,1771457313437,-150.0,9.726e-05,2]
[405959078,1771457313462,-500.0,9.781e-05,2]
[405959079,1771457313486,-150.0,9.781e-05,2]
[405959080,1771457313512,-500.0,9.836e-05,2]
[405959081,1771457313537,-200.0,9.836e-05,2]
[405959082,1771457313562,-500.0,9.89e-05,2]
[405959083,1771457313586,-500.0,9.945e-05,2]
[405959084,1771457313610,-500.0,0.0001,2]
[405959085,1771457313634,-1415.69506442,0.0001,2]
[405959086,1771457313658,-864.62724296,0.0001,2]
[405959087,1771457313682,-151.0,0.0001,2]
[405959088,1771457313708,-151.0,0.0001,2]
[405959089,1771457313732,-151.0,0.0001,2]
[405959090,1771457313756,-151.0,0.0001,2]
[405959091,1771457313779,-151.0,0.0001,2]
[405959092,1771457313805,-151.0,0.0001,2]
[405959093,1771457313831,-151.0,0.0001,2]
[405959094,1771457313856,-151.0,0.0001,2]
[405959095,1771457313881,-151.0,0.0001,2]
[405959096,1771457313907,-151.0,0.0001,2]
[405959097,1771457313933,-151.0,0.0001,2]
[405959098,1771457313958,-151.0,0.0001,2]
[405959099,1771457313983,-151.0,0.0001,2]
[405959100,1771457314008,-151.0,0.0001,2]
[405959101,1771457314033,-151.0,0.0001,2]
[405959102,1771457314058,-151.0,0.0001,2]
[405959103,1771457314086,-151.0,0.0001,2]
[405959104,1771457314114,-151.0,0.0001,2]
[405959105,1771457314138,-151.0,0.0001,2]
[405959106,1771457314165,-151.0,0.0001,2]
[405959107,1771457314189,-500.0,0.0001,2]
[405959108,1771457314213,-995.11978986,0.0001,2]
[405959109,1771457314237,-30456.03816285,0.0001004,2]
[405959110,1771457314262,-232.8376862,0.00010055,2]
[405959111,1771457314286,-260.58242271,0.000101,2]
[405959112,1771457314310,-500.0,0.00010274,2]
[405959113,1771457314333,-9999.99,0.00010274,2]
[405959114,1771457314358,-150.99,0.00010274,2]
[405959115,1771457314383,-250.0,0.00010294,2]
[405959116,1771457314407,-394.45999999,0.00010548,2]
[405959117,1771457314429,-1600.0,0.0001069,2]
[405959118,1771457314453,-1000.0,0.000109,2]
[405959119,1771457314478,-1000.0,0.000109,3]
[405959120,1771457314502,-197.45935606,0.00010959,2]
[405959121,1771457314526,-1415.69506442,0.00011089,2]
[405959122,1771457314551,-2374.78513607,0.00011099,2]
[405959123,1771457314576,-2374.78513599,0.00011099,2]
[405959124,1771457314598,-2374.78513599,0.00011099,2]
[405959125,1771457314623,-41256.98007246,0.00011099,2]
[405959126,1771457314648,-41256.98007245,0.00011099,2]
[405959127,1771457314675,-41256.98007245,0.00011099,2]
[405959128,1771457314700,-150.0,0.00011106,7]
[405959129,1771457314726,-389.93535823,0.00011145,2]
[405959130,1771457314751,-41256.98007245,0.00011165,2]
[405959131,1771457314776,-2374.78513599,0.00011165,2]
[405959132,1771457314805,-166.66,0.0001169,2]
[405959133,1771457314832,-1600.0,0.00011878,2]
[405959134,1771457314869,-166.66,0.00011936,2]
[405959135,1771457314899,-166.66,0.00012182,2]
[405959136,1771457314925,-1000.0,0.00012262,2]
[405959137,1771457314951,-41256.98007245,0.00012287,2]
[405959138,1771457314978,-2374.78513599,0.00012287,2]
[405959139,1771457315005,-166.66,0.00012428,2]
[405959140,1771457315032,-492.35,0.00012636,2]
[405959141,1771457315059,-166.66,0.00012675,2]
[405959142,1771457315089,-403.24562454,0.000128,2]
[405959143,1771457315119,-9388.06383747,0.00012829,2]
[405959144,1771457315147,-864.62724296,0.00012849,2]
[405959145,1771457315383,-166.66,0.00012921,2]
[405959146,1771457315409,-500.0,0.00013,2]
[405959147,1771457315438,-500.0,0.00013,2]
[405959148,1771457315464,-500.0,0.00013,2]
[405959149,1771457315488,-500.0,0.00013,2]
[405959150,1771457315513,-500.0,0.00013,2]
[405959151,1771457315538,-500.0,0.00013,2]
[405959152,1771457315563,-500.0,0.00013,2]
[405959153,1771457315588,-500.0,0.00013,2]
[405959154,1771457315614,-500.0,0.00013,2]
[405959155,1771457315640,-500.0,0.00013,2]
[405959156,1771457315667,-500.0,0.00013,2]
[405959157,1771457315692,-500.0,0.00013,2]
[405959158,1771457315719,-500.0,0.00013,2]
[405959159,1771457315744,-500.0,0.00013,2]
[405959160,1771457315769,-500.0,0.00013,2]
[405959161,1771457315795,-500.0,0.00013,2]
[405959162,1771457315821,-500.0,0.00013,2]
[405959163,1771457315850,-1600.0,0.00013065,2]
[405959164,1771457315875,-41256.98007245,0.0001341,2]
[405959165,1771457315901,-2374.78513599,0.0001341,2]
[405959166,1771457315925,-150.0,0.00013534,2]
[405959167,1771457315949,-1000.0,0.00013625,2]
[405959168,1771457315973,-500.0,0.00013698,2]
[405959169,1771457315998,-500.0,0.00013698,2]
[405959170,1771457316022,-506.17760418,0.00013698,2]
[405959171,1771457316047,-500.0,0.00013698,2]
[405959172,1771457316077,-500.0,0.00013698,2]
[405959173,1771457316104,-500.0,0.00013698,2]
[405959174,1771457316131,-500.0,0.00013698,2]
[405959175,1771457316156,-500.0,0.00013698,2]
[405959176,1771457316183,-500.0,0.00013698,2]
[405959177,1771457316209,-500.0,0.00013698,2]
[405959178,1771457316235,-500.0,0.00013698,2]
[405959179,1771457316259,-500.0,0.00013698,2]
[405959180,1771457316283,-500.0,0.00013698,2]
[405959181,1771457316307,-500.0,0.00013698,2]
[405959182,1771457316332,-500.0,0.00013698,2]
[405959183,1771457316357,-500.0,0.00013698,2]
[405959184,1771457316383,-500.0,0.00013698,2]
[405959185,1771457316408,-500.0,0.00013698,2]
[405959186,1771457316433,-500.0,0.00013698,2]
[405959187,1771457316458,-372.32,0.00013698,2]
[405959188,1771457316486,-500.0,0.00013698,2]
[405959189,1771457316511,-500.0,0.00013698,2]
[405959190,1771457316536,-500.0,0.00013698,2]
[405959191,1771457316560,-500.0,0.00013698,2]
[405959192,1771457316584,-500.0,0.00013698,2]
[405959193,1771457316609,-500.0,0.00013698,2]
[405959194,1771457316634,-500.0,0.00013698,2]
[405959195,1771457316660,-500.0,0.00013698,2]
[405959196,1771457316686,-500.0,0.00013698,2]
[405959197,1771457316713,-500.0,0.00013698,2]
[405959198,1771457316739,-500.0,0.00013698,2]
[405959199,1771457316764,-500.0,0.00013698,2]
[405959200,1771457316790,-500.0,0.00013698,2]
[405959201,1771457316815,-500.0,0.00013698,2]
[405959202,1771457316840,-500.0,0.00013698,2]
[405959203,1771457316864,-500.0,0.00013698,2]
[405959204,1771457316889,-500.0,0.00013698,2]
[405959205,1771457316924,-647.19,0.00013698,2]
[405959206,1771457316953,-500.0,0.00013698,2]
[405959207,1771457316981,-500.0,0.00013698,2]
[405959208,1771457317009,-500.0,0.00013698,2]
[405959209,1771457317035,-500.0,0.00013698,2]
[405959210,1771457317061,-500.0,0.00013698,2]
[405959211,1771457317088,-500.0,0.00013698,2]
[405959212,1771457317117,-500.0,0.00013698,2]
[405959213,1771457317142,-500.0,0.00013698,2]
[405959214,1771457317169,-500.0,0.00013698,2]
[405959215,1771457317195,-500.0,0.00013698,2]
[405959216,1771457317222,-500.0,0.00013698,2]
[405959217,1771457317248,-500.0,0.00013698,2]
[405959218,1771457317277,-635.95417002,0.00013698,2]
[405959219,1771457317303,-500.0,0.00013698,2]
[405959220,1771457317330,-500.0,0.00013698,2]
[405959221,1771457317356,-500.0,0.00013698,2]
[405959222,1771457317380,-500.0,0.00013698,2]
[405959223,1771457317408,-500.0,0.00013698,2]
[405959224,1771457317435,-500.0,0.00013698,2]
[405959225,1771457317461,-500.0,0.00013698,2]
[405959226,1771457317487,-500.0,0.00013698,2]
[405959227,1771457317515,-500.0,0.00013698,2]
[405959228,1771457317541,-500.0,0.00013698,2]
[405959229,1771457317570,-500.0,0.00013698,2]
[405959230,1771457317597,-500.0,0.00013698,2]
[405959231,1771457317624,-500.0,0.00013698,2]
[405959232,1771457317853,-500.0,0.00013698,2]
[405959233,1771457317883,-500.0,0.00013698,2]
[405959234,1771457317909,-500.0,0.00013698,2]
[405959235,1771457317934,-500.0,0.00013698,2]
[405959236,1771457317961,-500.0,0.00013698,2]
[405959237,1771457317986,-500.0,0.00013698,2]
[405959238,1771457318014,-500.0,0.00013698,2]
[405959239,1771457318041,-551.5455423,0.00013698,2]
[405959240,1771457318068,-591.1,0.00013698,2]
[405959241,1771457318100,-591.1,0.00013698,2]
[405959242,1771457318128,-591.1,0.00013698,2]
[405959243,1771457318156,-591.1,0.00013698,2]
[405959244,1771457318183,-591.1,0.00013698,2]
[405959245,1771457318209,-591.1,0.00013698,2]
[405959246,1771457318235,-591.1,0.00013698,2]
[405959247,1771457318260,-591.1,0.00013698,2]
[405959248,1771457318285,-591.1,0.00013698,2]
[405959249,1771457318314,-591.1,0.00013698,2]
[405959250,1771457318340,-591.1,0.00013698,2]
[405959251,1771457318368,-591.1,0.00013698,2]
[405959252,1771457318393,-591.1,0.00013698,2]
[405959253,1771457318419,-591.1,0.00013698,2]
[405959254,1771457318444,-500.0,0.00013698,2]
[405959255,1771457318471,-591.1,0.00013698,2]
[405959256,1771457318497,-500.0,0.00013698,2]
[405959257,1771457318524,-591.1,0.00013698,2]
[405959258,1771457318550,-500.0,0.00013698,2]
[405959259,1771457318574,-500.0,0.00013698,2]
[405959260,1771457318600,-500.0,0.00013698,2]
[405959261,1771457318626,-500.0,0.00013698,2]
[405959262,1771457318652,-500.0,0.00013698,2]
[405959263,1771457318677,-500.0,0.00013698,2]
[405959264,1771457318702,-500.0,0.00013698,2]
[405959265,1771457318731,-500.0,0.00013698,2]
[405959266,1771457318756,-500.0,0.00013698,2]
[405959267,1771457318782,-500.0,0.00013698,2]
[405959268,1771457318808,-500.0,0.00013698,2]
[405959269,1771457318834,-500.0,0.00013698,2]
[405959270,1771457318861,-802.85,0.00013698,2]
[405959271,1771457318887,-802.85,0.00013698,2]
[405959272,1771457318914,-802.85,0.00013698,2]
[405959273,1771457318944,-802.85,0.00013698,2]
[405959274,1771457318970,-802.85,0.00013698,2]
[405959275,1771457318997,-802.85,0.00013698,2]
[405959276,1771457319026,-802.85,0.00013698,2]
[405959277,1771457319053,-802.85,0.00013698,2]
[405959278,1771457319081,-802.85,0.00013698,2]
[405959279,1771457319112,-802.85,0.00013698,2]
[405959280,1771457319140,-802.85,0.00013698,2]
[405959281,1771457319166,-802.85,0.00013698,2]
[405959282,1771457319192,-802.85,0.00013698,2]
[405959283,1771457319217,-802.85,0.00013698,2]
[405959284,1771457319243,-802.85,0.00013698,2]
[405959285,1771457319268,-802.85,0.00013698,2]
[405959286,1771457319294,-500.0,0.00013698,2]
[405959287,1771457319319,-500.0,0.00013698,2]
[405959288,1771457319344,-464.29440353,0.00013698,2]
[405959289,1771457319369,-501.1551627,0.00013698,2]
[405959290,1771457319394,-500.0,0.00013698,2]
[405959291,1771457319419,-500.0,0.00013698,2]
[405959292,1771457319447,-500.0,0.00013698,2]
[405959293,1771457319471,-500.0,0.00013698,2]
[405959294,1771457319496,-500.0,0.00013698,2]
[405959295,1771457319523,-500.0,0.00013698,2]
[405959296,1771457319548,-500.0,0.00013698,2]
[405959297,1771457319574,-500.0,0.00013698,2]
[405959298,1771457319600,-627.68,0.00013698,2]
[405959299,1771457319624,-661.24,0.00013699,2]
[405959300,1771457319649,-500.0,0.00013699,2]
[405959301,1771457319672,-500.0,0.00013754,2]
[405959302,1771457319696,-500.0,0.00013809,2]
[405959303,1771457319720,-500.0,0.00013863,2]
[405959304,1771457319744,-500.0,0.00013918,2]
[405959305,1771457319768,-513.70916545,0.00013973,2]
[405959306,1771457319794,-500.0,0.0001405,2]
[405959307,1771457319819,-500.0,0.0001405,2]
[405959308,1771457319844,-795.55172821,0.0001405,2]
[405959309,1771457319869,-500.0,0.0001405,2]
[405959310,1771457319894,-500.0,0.0001405,2]
[405959311,1771457319918,-500.0,0.0001405,2]
[405959312,1771457319943,-500.0,0.0001405,2]
[405959313,1771457319968,-500.0,0.0001405,2]
[405959314,1771457319992,-500.0,0.0001405,2]
[405959315,1771457320017,-500.0,0.0001405,2]
[405959316,1771457320043,-500.0,0.0001405,2]
[405959317,1771457320069,-500.0,0.0001405,2]
[405959318,1771457320099,-500.0,0.0001405,2]
[405959319,1771457320282,-500.0,0.0001405,2]
[405959320,1771457320308,-600.0,0.0001405,2]
[405959321,1771457320334,-500.0,0.0001405,2]
[405959322,1771457320360,-500.0,0.0001405,2]
[405959323,1771457320386,-500.0,0.0001405,2]
[405959324,1771457320411,-500.0,0.0001405,2]
[405959325,1771457320436,-500.0,0.0001405,2]
[405959326,1771457320461,-500.0,0.0001405,2]
[405959327,1771457320487,-500.0,0.0001405,2]
[405959328,1771457320513,-500.0,0.0001405,2]
[405959329,1771457320539,-500.0,0.0001405,2]
[405959330,1771457320563,-500.0,0.0001405,2]
[405959331,1771457320587,-1349.261,0.00014054,2]
[405959332,1771457320610,-638.503,0.00014054,2]
[405959333,1771457320635,-162.74,0.00014054,2]
[405959334,1771457320659,-3528.442,0.00014054,2]
[405959335,1771457320684,-1164.0,0.00014054,2]
[405959336,1771457320709,-267.79,0.00014054,2]
[405959337,1771457320735,-1275.0,0.00014054,2]
[405959338,1771457320764,-5973.0,0.00014054,2]
[405959339,1771457320788,-2452.0,0.00014054,2]
[405959340,1771457320813,-919.0,0.00014054,2]
[405959341,1771457320838,-412.0,0.00014054,2]
[405959342,1771457320862,-1218.539,0.00014054,2]
[405959343,1771457320888,-1600.0,0.00014253,2]
[405959344,1771457320912,-41256.98007245,0.00014532,2]
[405959345,1771457320936,-2374.78513599,0.00014532,2]
[405959346,1771457320961,-151.0,0.00014634,2]
[405959347,1771457320985,-155.57771791,0.000149,2]
[405959348,1771457321010,-1000.0,0.00014987,2]
[405959349,1771457321035,-802.74451152,0.00015,14]
[405959350,1771457321060,-900.0,0.00015068,2]
[405959351,1771457321086,-151.0,0.0001545,2]
[405959352,1771457321115,-500.0,0.00015452,2]
[405959353,1771457321139,-500.0,0.00015452,2]
[405959354,1771457321165,-591.1,0.00015452,2]
[405959355,1771457321189,-500.0,0.00015452,2]
[405959356,1771457321214,-802.85,0.00015452,2]
[405959357,1771457321239,-186063.64,0.00015453,2]
[405959358,1771457321263,-41256.98007245,0.00015655,2]
[405959359,1771457321287,-2374.78513599,0.00015655,2]
[405959360,1771457321312,-248.592671,0.00015816,7]
[405959361,1771457321335,-200.0,0.00016,2]
[405959362,1771457321361,-506.0,0.0001605,2]
[405959363,1771457321384,-9999.99,0.00016116,2]
[405959364,1771457321408,-5000.007002,0.000162,5]
[405959365,1771457321432,-1000.0,0.0001635,2]
[405959366,1771457321460,-1273.8,0.00016438,2]
[405959367,1771457321492,-900.0,0.00016438,2]
[405959368,1771457321518,-167.25,0.00016712,2]
[405959369,1771457321543,-41256.98007245,0.00016777,2]
[405959370,1771457321566,-2374.78513599,0.00016777,2]
[405959371,1771457321591,-300.0,0.00016999,2]
[405959372,1771457321614,-300.0,0.00016999,2]
[405959373,1771457321639,-666.0,0.00016999,2]
[405959374,1771457321663,-127395.96782942,0.00017,2]
[405959375,1771457321686,-506.0,0.00017005,2]
[405959376,1771457321709,-1338.0,0.00017054,2]
[405959377,1771457321735,-617.0,0.00017054,2]
[405959378,1771457321759,-3492.0,0.00017054,2]
[405959379,1771457321782,-1164.0,0.00017054,2]
[405959380,1771457321806,-150.0,0.00017054,2]
[405959381,1771457321830,-1275.0,0.00017054,2]
[405959382,1771457321854,-5973.0,0.00017054,2]
[405959383,1771457321878,-2452.0,0.00017054,2]
[405959384,1771457321902,-919.0,0.00017054,2]
[405959385,1771457321926,-412.0,0.00017054,2]
[405959386,1771457321949,-1209.0,0.00017054,2]
[405959387,1771457321978,-5888.0,0.00017101,2]
[405959388,1771457322004,-168.0,0.00017252,2]
[405959389,1771457322030,-168.0,0.00017309,2]
[405959390,1771457322055,-1273.8,0.00017399,2]
[405959391,1771457322088,-168.0,0.00017431,2]
[405959392,1771457322127,-168.0,0.00017456,2]
[405959393,1771457322160,-168.0,0.00017526,2]
[405959394,1771457322195,-168.0,0.0001757,2]
[405959395,1771457322229,-168.0,0.0001757,2]
[405959396,1771457322262,-168.0,0.00017587,2]
[405959397,1771457322292,-200.0,0.000177,6]
[405959398,1771457322328,-5005.0,0.00017704,2]
[405959399,1771457322359,-500.0,0.00017726,2]
[405959400,1771457322391,-150.0,0.00017726,2]
[405959401,1771457322425,-168.0,0.0001777,2]
[405959402,1771457322455,-500.0,0.00017781,2]
[405959404,1771457322490,-200.0,0.000178,6]
[405959405,1771457322524,-500.0,0.00017808,2]
[405959406,1771457322557,-500.0,0.00017808,2]
[405959407,1771457322591,-500.0,0.00017808,2]
[405959408,1771457322624,-500.0,0.00017808,2]
[405959409,1771457322655,-500.0,0.00017808,2]
[405959410,1771457322683,-500.0,0.00017808,2]
[405959411,1771457322715,-500.0,0.00017808,2]
[405959412,1771457322749,-350.20261628,0.00017808,2]
[405959413,1771457322778,-500.0,0.00017808,2]
[405959414,1771457322810,-500.0,0.00017808,2]
[405959415,1771457322841,-500.0,0.00017808,2]
[405959416,1771457322870,-500.0,0.00017808,2]
[405959417,1771457322900,-500.0,0.00017808,2]
[405959418,1771457322930,-500.0,0.00017808,2]
[405959419,1771457322960,-500.0,0.00017808,2]
[405959420,1771457322991,-1580.96144869,0.00017808,2]
[405959421,1771457323022,-1580.96144869,0.00017808,2]
[405959422,1771457323054,-1580.96144869,0.00017808,2]
[405959423,1771457323085,-1580.96144869,0.00017808,2]
[405959424,1771457323122,-1580.96144869,0.00017808,2]